fUST/lending_fUST_20260503
["ID","MTS","AMOUNT","RATE_DAILY","PERIOD"]
[421509906,1777786241000,-4911.76417,0.00016438,2]
[421509904,1777786241000,-4911.76417,0.00016438,2]
[421509905,1777786241000,-151.0,0.00016438,2]
[421509902,1777786241000,-4911.76417,0.00016438,2]
[421509900,1777786241000,-151.0,0.00016438,2]
[421509910,1777786241000,-4911.76417,0.00016438,2]
[421509898,1777786241000,-151.0,0.00016438,2]
[421509909,1777786241000,-151.0,0.00016438,2]
[421509901,1777786241000,-151.0,0.00016438,2]
[421509899,1777786241000,-4911.76417,0.00016438,2]
[421509891,1777786241000,-151.0,0.00016438,2]
[421509890,1777786241000,-151.0,0.00016438,2]
[421509897,1777786241000,-4911.76417,0.00016438,2]
[421509894,1777786241000,-151.0,0.00016438,2]
[421509886,1777786241000,-954.808242,0.00016438,2]
[421509908,1777786241000,-4911.76417,0.00016438,2]
[421509856,1777786241000,-399.681385,0.00016438,2]
[421509860,1777786241000,-399.681385,0.00016438,2]
[421509854,1777786241000,-399.681385,0.00016438,2]
[421509828,1777786241000,-151.0,0.00016438,2]
[421509834,1777786241000,-151.0,0.00016438,2]
[421509826,1777786241000,-151.0,0.00016438,2]
[421509825,1777786241000,-5971.285437,0.00016438,2]
[421509835,1777786241000,-5971.285437,0.00016438,2]
[421509824,1777786241000,-151.0,0.00016438,2]
[421509823,1777786241000,-5971.285437,0.00016438,2]
[421509822,1777786241000,-5971.285437,0.00016438,2]
[421509821,1777786241000,-5971.285437,0.00016438,2]
[421509816,1777786241000,-967.60754,0.00016438,2]
[421509818,1777786241000,-5971.285437,0.00016438,2]
[421509815,1777786241000,-967.607547,0.00016438,2]
[421509819,1777786241000,-5971.285437,0.00016438,2]
[421509812,1777786241000,-967.607547,0.00016438,2]
[421509809,1777786241000,-967.607547,0.00016438,2]
[421509813,1777786241000,-967.607547,0.00016438,2]
[421509820,1777786241000,-5971.285437,0.00016438,2]
[421509814,1777786241000,-967.607547,0.00016438,2]
[421509810,1777786241000,-967.607547,0.00016438,2]
[421509817,1777786241000,-5971.285437,0.00016438,2]
[421509811,1777786241000,-967.607547,0.00016438,2]
[421509827,1777786241000,-5971.285437,0.00016438,2]
[421509829,1777786241000,-5971.285437,0.00016438,2]
[421509858,1777786241000,-399.681385,0.00016438,2]
[421509832,1777786241000,-151.0,0.00016438,2]
[421509830,1777786241000,-151.0,0.00016438,2]
[421509855,1777786241000,-399.681385,0.00016438,2]
[421509849,1777786241000,-399.681385,0.00016438,2]
[421509859,1777786241000,-399.681385,0.00016438,2]
[421509850,1777786241000,-399.681385,0.00016438,2]
[421509853,1777786241000,-399.681385,0.00016438,2]
[421509852,1777786241000,-399.681385,0.00016438,2]
[421509848,1777786241000,-399.681385,0.00016438,2]
[421509842,1777786241000,-5971.285437,0.00016438,2]
[421509841,1777786241000,-296.51676,0.00016438,2]
[421509839,1777786241000,-151.0,0.00016438,2]
[421509851,1777786241000,-399.681385,0.00016438,2]
[421509840,1777786241000,-5971.285437,0.00016438,2]
[421509847,1777786241000,-300.571227,0.00016438,2]
[421509846,1777786241000,-151.0,0.00016438,2]
[421509833,1777786241000,-5971.285437,0.00016438,2]
[421509844,1777786241000,-5971.285437,0.00016438,2]
[421509845,1777786241000,-5971.28543261,0.00016438,2]
[421509836,1777786241000,-151.0,0.00016438,2]
[421509843,1777786241000,-5971.285437,0.00016438,2]
[421509837,1777786241000,-5971.285437,0.00016438,2]
[421509831,1777786241000,-5971.285437,0.00016438,2]
[421509838,1777786241000,-5971.285437,0.00016438,2]
[421509957,1777786242000,-1385.885834,0.00016438,2]
[421509955,1777786242000,-292.85951,0.00016438,2]
[421509954,1777786242000,-151.0,0.00016438,2]
[421509952,1777786242000,-151.0,0.00016438,2]
[421509958,1777786242000,-478.779056,0.00016438,2]
[421509953,1777786242000,-151.0,0.00016438,2]
[421509956,1777786242000,-478.779056,0.00016438,2]
[421509951,1777786242000,-151.0,0.00016438,2]
[421509949,1777786242000,-151.0,0.00016438,2]
[421509959,1777786242000,-735.52857903,0.00016438,2]
[421509980,1777786242000,-478.779056,0.00016438,2]
[421509962,1777786242000,-478.779056,0.00016438,2]
[421509963,1777786242000,-1385.885834,0.00016438,2]
[421509968,1777786242000,-1385.885834,0.00016438,2]
[421509961,1777786242000,-650.35725497,0.00016438,2]
[421509964,1777786242000,-478.779056,0.00016438,2]
[421509975,1777786242000,-1385.885834,0.00016438,2]
[421509966,1777786242000,-478.779056,0.00016438,2]
[421509965,1777786242000,-1385.885834,0.00016438,2]
[421509970,1777786242000,-478.779056,0.00016438,2]
[421509950,1777786242000,-151.0,0.00016438,2]
[421509974,1777786242000,-478.779056,0.00016438,2]
[421509945,1777786242000,-9918.957667,0.00016438,2]
[421509948,1777786242000,-151.0,0.00016438,2]
[421509938,1777786242000,-9918.957665,0.00016438,2]
[421509985,1777786242000,-151.0,0.00016438,2]
[421509926,1777786242000,-9918.957665,0.00016438,2]
[421509924,1777786242000,-9918.957665,0.00016438,2]
[421509925,1777786242000,-4911.76417,0.00016438,2]
[421509934,1777786242000,-9918.957665,0.00016438,2]
[421509933,1777786242000,-9918.957665,0.00016438,2]
[421509935,1777786242000,-9918.957665,0.00016438,2]
[421509929,1777786242000,-9918.957665,0.00016438,2]
[421509927,1777786242000,-4911.764174,0.00016438,2]
[421509928,1777786242000,-9918.957665,0.00016438,2]
[421509943,1777786242000,-9918.957665,0.00016438,2]
[421509931,1777786242000,-9918.957665,0.00016438,2]
[421509932,1777786242000,-9918.957665,0.00016438,2]
[421509940,1777786242000,-9918.957665,0.00016438,2]
[421509944,1777786242000,-9918.957665,0.00016438,2]
[421509942,1777786242000,-9918.957665,0.00016438,2]
[421509936,1777786242000,-9918.957665,0.00016438,2]
[421509947,1777786242000,-151.0,0.00016438,2]
[421509939,1777786242000,-9918.957665,0.00016438,2]
[421509937,1777786242000,-9918.957665,0.00016438,2]
[421509946,1777786242000,-151.0,0.00016438,2]
[421509941,1777786242000,-9918.957665,0.00016438,2]
[421509930,1777786242000,-9918.957665,0.00016438,2]
[421509976,1777786242000,-478.779056,0.00016438,2]
[421509972,1777786242000,-1385.885834,0.00016438,2]
[421509979,1777786242000,-1385.885834,0.00016438,2]
[421510005,1777786242000,-7743.967008,0.00016438,2]
[421510004,1777786242000,-1385.885824,0.00016438,2]
[421510008,1777786242000,-7743.967008,0.00016438,2]
[421510010,1777786242000,-7743.967008,0.00016438,2]
[421510014,1777786242000,-7743.967008,0.00016438,2]
[421510013,1777786242000,-7743.967008,0.00016438,2]
[421510012,1777786242000,-7743.967008,0.00016438,2]
[421510011,1777786242000,-7743.967008,0.00016438,2]
[421510009,1777786242000,-7743.967008,0.00016438,2]
[421510017,1777786242000,-7743.967008,0.00016438,2]
[421510007,1777786242000,-7743.967008,0.00016438,2]
[421510018,1777786242000,-7743.967008,0.00016438,2]
[421510016,1777786242000,-7743.967008,0.00016438,2]
[421510022,1777786242000,-7743.967008,0.00016438,2]
[421510021,1777786242000,-7743.967008,0.00016438,2]
[421510023,1777786242000,-7743.967008,0.00016438,2]
[421510025,1777786242000,-7743.9670165,0.00016438,2]
[421510026,1777786242000,-150.0799,0.0001646,2]
[421510027,1777786242000,-2099.70157783,0.00016505,2]
[421510029,1777786242000,-151.0,0.000166,2]
[421510024,1777786242000,-7743.967008,0.00016438,2]
[421509987,1777786242000,-478.779056,0.00016438,2]
[421510019,1777786242000,-7743.967008,0.00016438,2]
[421510006,1777786242000,-7743.967008,0.00016438,2]
[421510015,1777786242000,-7743.967008,0.00016438,2]
[421509994,1777786242000,-1385.885834,0.00016438,2]
[421509986,1777786242000,-1385.885834,0.00016438,2]
[421509978,1777786242000,-478.779056,0.00016438,2]
[421509977,1777786242000,-1385.885834,0.00016438,2]
[421509984,1777786242000,-478.779056,0.00016438,2]
[421509988,1777786242000,-151.0,0.00016438,2]
[421510003,1777786242000,-1385.885834,0.00016438,2]
[421510028,1777786242000,-151.0,0.000166,2]
[421509982,1777786242000,-478.779056,0.00016438,2]
[421509983,1777786242000,-1385.885834,0.00016438,2]
[421510000,1777786242000,-478.779056,0.00016438,2]
[421509996,1777786242000,-478.779056,0.00016438,2]
[421509981,1777786242000,-1385.885834,0.00016438,2]
[421509992,1777786242000,-1385.885834,0.00016438,2]
[421510002,1777786242000,-478.779047,0.00016438,2]
[421509993,1777786242000,-478.779056,0.00016438,2]
[421509989,1777786242000,-1385.885834,0.00016438,2]
[421509995,1777786242000,-478.779056,0.00016438,2]
[421510001,1777786242000,-1385.885834,0.00016438,2]
[421509990,1777786242000,-478.779056,0.00016438,2]
[421509999,1777786242000,-1385.885834,0.00016438,2]
[421509997,1777786242000,-1385.885834,0.00016438,2]
[421509998,1777786242000,-478.779056,0.00016438,2]
[421509991,1777786242000,-264.490901,0.00016438,2]
[421510040,1777786243000,-2993.37958326,0.00016856,2]
[421510039,1777786243000,-151.0,0.000168,2]
[421510037,1777786243000,-1606.1173704,0.00016799,2]
[421510038,1777786243000,-151.0,0.000168,2]
[421510035,1777786243000,-604.36031352,0.00016782,2]
[421510032,1777786243000,-520.38427155,0.00016691,2]
[421510031,1777786243000,-781.04794952,0.00016691,2]
[421510033,1777786243000,-500.0,0.00016691,2]
[421510034,1777786243000,-1559.0,0.00016712,2]
[421510030,1777786243000,-3522.38244928,0.00016603,2]
[421510042,1777786243000,-1785.9,0.000169,2]
[421510036,1777786243000,-150.0799,0.00016789,2]
[421510054,1777786243000,-151.0,0.00017,2]
[421510065,1777786243000,-604.36031352,0.00017037,2]
[421510045,1777786243000,-1855.9471833,0.00016919,2]
[421510052,1777786243000,-151.0,0.00017,2]
[421510075,1777786243000,-461.0,0.00017104,2]
[421510077,1777786243000,-1070.38044781,0.00017109,2]
[421510073,1777786243000,-151.0,0.000171,2]
[421510070,1777786243000,-1529.44833204,0.00017079,2]
[421510063,1777786243000,-439.90801037,0.00017022,2]
[421510067,1777786243000,-1529.44833204,0.0001705,2]
[421510047,1777786243000,-355.0,0.00016956,2]
[421510058,1777786243000,-469.238008,0.0001701,2]
[421510060,1777786243000,-778.476016,0.0001701,2]
[421510056,1777786243000,-160.0,0.0001701,2]
[421510049,1777786243000,-1559.0,0.00016986,2]
[421510068,1777786243000,-864.0,0.00017068,2]
[421510195,1777786244000,-610.5210338,0.00014359,2]
[421510177,1777786244000,-419.77939956,0.00017109,2]
[421510184,1777786244000,-700.05161533,0.00017145,3]
[421510182,1777786244000,-150.0799,0.00017125,2]
[421510180,1777786244000,-39.28848467,0.00017109,2]
[421510196,1777786244000,-740.0,0.0001436,2]
[421510200,1777786244000,-1406.51038101,0.00017145,3]
[421510187,1777786244000,-3250.67284012,0.00017145,3]
[421510198,1777786244000,-372.126638,0.00017083,2]
[421510197,1777786244000,-160.0,0.00017083,2]
[421510199,1777786244000,-584.253277,0.00017083,2]
[421510204,1777786244000,-11595.66915521,0.00017222,10]
[421510202,1777786244000,-696.0,0.00017148,2]
[421510203,1777786244000,-604.36031352,0.00017201,2]
[421510205,1777786244000,-418.93857618,0.00017222,10]
[421510201,1777786244000,-10502.98590886,0.00017145,3]
[421510215,1777786246000,-366.0,0.00017222,10]
[421510214,1777786246000,-109041.38642133,0.00017222,10]
[421510213,1777786246000,-1995.58638884,0.00016856,2]
[421510212,1777786246000,-185.0,0.0001436,2]
[421510211,1777786246000,-2977.03427717,0.00013599,2]
[421510217,1777786252000,129.73081265,7.6e-05,2]
[421510216,1777786252000,2545.73804527,7.6e-05,2]
[421510218,1777786696000,200.0,7.6e-05,2]
[421510275,1777787431000,-586.0,0.00011773,2]
[421510277,1777787431000,-211.30210208,0.00011892,2]
[421510274,1777787431000,-5000.0,0.00011773,2]
[421510280,1777787432000,-300.0,0.000125,2]
[421510282,1777787432000,-300.0,0.00012501,2]
[421510286,1777787432000,-300.0,0.00012501,2]
[421510292,1777787432000,-214.37645299,0.00012501,2]
[421510290,1777787432000,-85.62354701,0.00012501,2]
[421510288,1777787432000,-300.0,0.00012501,2]
[421510284,1777787432000,-300.0,0.00012501,2]
[421510279,1777787432000,-313.75081438,0.00012195,2]
[421510296,1777787432000,-300.0,0.00012501,2]
[421510305,1777787432000,-300.0,0.00012501,2]
[421510298,1777787432000,-300.0,0.00012501,2]
[421510302,1777787432000,-300.0,0.00012501,2]
[421510303,1777787432000,-300.0,0.00012501,2]
[421510311,1777787432000,-300.0,0.00012501,2]
[421510313,1777787432000,-72.12966673,0.00013019,2]
[421510300,1777787432000,-300.0,0.00012501,2]
[421510307,1777787432000,-300.0,0.00012501,2]
[421510309,1777787432000,-300.0,0.00012501,2]
[421510294,1777787432000,-300.0,0.00012501,2]
[421510480,1777787438000,-21485.32245194,0.00013471,2]
[421510477,1777787438000,-3341.44961955,0.00012889,2]
[421510478,1777787438000,-427.87033327,0.00013019,2]
[421510476,1777787438000,-1658.55038045,0.00012889,2]
[421510479,1777787438000,-160.0,0.0001342,2]
[421510511,1777787443000,-14628.49845318,0.00013471,2]
[421510512,1777787443000,-2604.90499255,0.00013599,2]
[421510510,1777787443000,-7676.85178447,0.00013471,2]
[421510514,1777787443000,-111.44722704,0.00013699,2]
[421510515,1777787443000,-497.00333043,0.00013699,2]
[421510513,1777787443000,-888.55277296,0.00013699,2]
[421510540,1777787446000,-500.0,0.00014006,2]
[421510541,1777787446000,-500.0,0.00014006,2]
[421510538,1777787446000,-500.0,0.00014006,2]
[421510546,1777787446000,-314.32486033,0.00014006,2]
[421510537,1777787446000,-500.0,0.00014006,2]
[421510545,1777787446000,-500.0,0.00014006,2]
[421510544,1777787446000,-194.15962609,0.00014006,2]
[421510536,1777787446000,-522.06518788,0.00014006,2]
[421510534,1777787446000,-500.0,0.00014006,2]
[421510533,1777787446000,-500.0,0.00014006,2]
[421510531,1777787446000,-600.0,0.00013739,2]
[421510532,1777787446000,-500.0,0.00014006,2]
[421510530,1777787446000,-502.99666957,0.00013699,2]
[421510535,1777787446000,-500.0,0.00014006,2]
[421510542,1777787446000,-500.0,0.00014006,2]
[421510543,1777787446000,-500.0,0.00014006,2]
[421510547,1777787446000,-185.67513967,0.00014006,2]
[421510557,1777787446000,-500.0,0.00014006,2]
[421510539,1777787446000,-500.0,0.00014006,2]
[421510558,1777787446000,-500.0,0.00014006,2]
[421510562,1777787446000,-259.98045808,0.00014006,2]
[421510559,1777787446000,-500.0,0.00014006,2]
[421510560,1777787446000,-500.0,0.00014006,2]
[421510556,1777787446000,-500.0,0.00014006,2]
[421510561,1777787446000,-601.04785525,0.00014006,2]
[421510555,1777787446000,-500.0,0.00014006,2]
[421510554,1777787446000,-500.0,0.00014006,2]
[421510551,1777787446000,-500.0,0.00014006,2]
[421510548,1777787446000,-500.0,0.00014006,2]
[421510550,1777787446000,-537.55474832,0.00014006,2]
[421510549,1777787446000,-500.0,0.00014006,2]
[421510553,1777787446000,-500.0,0.00014006,2]
[421510552,1777787446000,-500.0,0.00014006,2]
[421510564,1777787807000,245.047,8e-05,2]
[421510716,1777788638000,-300.0,0.00012117,2]
[421510718,1777788638000,-300.0,0.00012117,2]
[421510720,1777788638000,-300.0,0.00012117,2]
[421510724,1777788638000,-239.9432205,0.0001353,2]
[421510723,1777788638000,-854.0550626,0.0001353,2]
[421510726,1777788638000,-956.06,0.00013698,2]
[421510722,1777788638000,-300.0,0.00012117,2]
[421510721,1777788638000,-300.0,0.00012117,2]
[421510717,1777788638000,-300.0,0.00012117,2]
[421510719,1777788638000,-300.0,0.00012117,2]
[421510715,1777788638000,-300.0,0.00012117,2]
[421510706,1777788638000,-307.47579809,0.00011701,2]
[421510713,1777788638000,-300.0,0.00012117,2]
[421510712,1777788638000,-300.0,0.00012117,2]
[421510711,1777788638000,-300.0,0.00012117,2]
[421510709,1777788638000,-300.0,0.00012117,2]
[421510710,1777788638000,-300.0,0.00012117,2]
[421510707,1777788638000,-1981.0,0.00012,2]
[421510704,1777788638000,-300.0,0.00011641,2]
[421510705,1777788638000,-570.0,0.00011642,2]
[421510703,1777788638000,-5000.0,0.00011525,2]
[421510725,1777788638000,-956.06,0.00013698,2]
[421510714,1777788638000,-300.0,0.00012117,2]
[421510727,1777788638000,-1000.0,0.00013699,2]
[421510708,1777788638000,-300.0,0.00012117,2]
[421510729,1777788638000,-176.83143619,0.00013844,2]
[421510728,1777788638000,-362.82144175,0.00013701,2]
[421510751,1777788638000,-276.7,0.00015953,2]
[421510752,1777788638000,-720.0,0.00016012,2]
[421510747,1777788638000,-151.0,0.00015707,2]
[421510746,1777788638000,-418.16708541,0.00015701,2]
[421510749,1777788638000,-277.58,0.00015834,2]
[421510748,1777788638000,-274.06,0.00015747,2]
[421510745,1777788638000,-151.0,0.00015693,2]
[421510743,1777788638000,-339.49861438,0.00015637,2]
[421510744,1777788638000,-500.0,0.00015693,2]
[421510741,1777788638000,-956.06,0.00014853,2]
[421510750,1777788638000,-208.0,0.00015836,3]
[421510738,1777788638000,-500.0,0.00014749,2]
[421510742,1777788638000,-203.81,0.00015146,2]
[421510730,1777788638000,-200.24074166,0.000139,2]
[421510731,1777788638000,-956.06,0.00014005,2]
[421510734,1777788638000,-160.0,0.00014239,2]
[421510733,1777788638000,-956.06,0.00014153,2]
[421510732,1777788638000,-1000.0,0.00014044,2]
[421510736,1777788638000,-600.0,0.00014556,2]
[421510737,1777788638000,-546.46,0.00014749,2]
[421510739,1777788638000,-1410.0,0.0001475,2]
[421510740,1777788638000,-646.0,0.0001475,2]
[421510735,1777788638000,-160.0,0.00014239,2]
[421510775,1777788639000,-800.0,0.00016873,2]
[421510777,1777788639000,-800.0,0.00016884,2]
[421510778,1777788639000,-800.0,0.00016887,2]
[421510776,1777788639000,-800.0,0.00016881,2]
[421510780,1777788639000,-800.0,0.00016899,2]
[421510779,1777788639000,-800.0,0.00016894,2]
[421510782,1777788639000,-800.0,0.00016905,2]
[421510781,1777788639000,-800.0,0.00016901,2]
[421510785,1777788639000,-800.0,0.00016923,2]
[421510784,1777788639000,-800.0,0.00016916,2]
[421510783,1777788639000,-276.548107,0.00016915,2]
[421510788,1777788639000,-800.0,0.00016937,2]
[421510789,1777788639000,-800.0,0.00016961,2]
[421510787,1777788639000,-800.0,0.00016934,2]
[421510791,1777788639000,-500.0,0.00016962,2]
[421510774,1777788639000,-800.0,0.00016871,2]
[421510786,1777788639000,-800.0,0.00016927,2]
[421510773,1777788639000,-1516.0523898,0.00016857,2]
[421510759,1777788639000,-1686.69677998,0.00016438,2]
[421510770,1777788639000,-800.0,0.00016833,2]
[421510753,1777788639000,-257.36,0.00016019,2]
[421510755,1777788639000,-150.0799,0.00016137,2]
[421510757,1777788639000,-283.69,0.00016269,2]
[421510754,1777788639000,-282.42,0.00016099,2]
[421510758,1777788639000,-252.06372169,0.000163,2]
[421510756,1777788639000,-239.9432205,0.0001619,2]
[421510762,1777788639000,-160.0,0.00016728,2]
[421510760,1777788639000,-174.9077,0.0001646,2]
[421510769,1777788639000,-338.0,0.00016829,2]
[421510799,1777788639000,-170.83941648,0.00016969,2]
[421510764,1777788639000,-426.451855,0.00016728,2]
[421510765,1777788639000,-547.284,0.00016797,2]
[421510763,1777788639000,-293.225927,0.00016728,2]
[421510767,1777788639000,-298.83,0.00016798,2]
[421510766,1777788639000,-305.78,0.00016797,2]
[421510768,1777788639000,-800.0,0.00016799,2]
[421510771,1777788639000,-800.0,0.00016834,2]
[421510772,1777788639000,-800.0,0.00016846,2]
[421510761,1777788639000,-151.4811645,0.00016502,2]
[421510790,1777788639000,-800.0,0.00016962,2]
[421510798,1777788639000,-500.0,0.00016969,2]
[421510794,1777788639000,-800.0,0.00016969,2]
[421510819,1777788639000,-800.0,0.00017015,2]
[421510814,1777788639000,-800.0,0.00017006,2]
[421510823,1777788639000,-500.0,0.00017034,2]
[421510792,1777788639000,-800.0,0.00016963,2]
[421510822,1777788639000,-800.0,0.00017032,2]
[421510821,1777788639000,-941.89816543,0.00017022,2]
[421510825,1777788639000,-800.0,0.00017044,2]
[421510824,1777788639000,-800.0,0.00017039,2]
[421510826,1777788639000,-2299.99388392,0.00017056,2]
[421510828,1777788639000,-500.0,0.00017063,2]
[421510834,1777788639000,-16495.61297991,0.00017222,10]
[421510831,1777788639000,-800.0,0.00017069,2]
[421510827,1777788639000,-500.0,0.00017061,2]
[421510830,1777788639000,-800.0,0.00017068,2]
[421510832,1777788639000,-800.0,0.00017069,2]
[421510833,1777788639000,-800.0,0.00017105,2]
[421510829,1777788639000,-800.0,0.00017065,2]
[421510818,1777788639000,-854.0550626,0.00017015,2]
[421510820,1777788639000,-800.0,0.00017016,2]
[421510815,1777788639000,-800.0,0.00017007,2]
[421510817,1777788639000,-800.0,0.00017014,2]
[421510793,1777788639000,-411.0,0.00016968,2]
[421510796,1777788639000,-566.78309503,0.00016969,2]
[421510797,1777788639000,-169.11835421,0.00016969,2]
[421510816,1777788639000,-800.0,0.00017008,2]
[421510800,1777788639000,-500.0,0.00016969,2]
[421510801,1777788639000,-500.0,0.00016969,2]
[421510803,1777788639000,-218.18691312,0.00016969,2]
[421510806,1777788639000,-500.0,0.00016969,2]
[421510804,1777788639000,-500.0,0.00016969,2]
[421510795,1777788639000,-243.79551401,0.00016969,2]
[421510808,1777788639000,-500.0,0.00016969,2]
[421510805,1777788639000,-500.0,0.00016969,2]
[421510807,1777788639000,-500.0,0.00016969,2]
[421510811,1777788639000,-800.0,0.00016979,2]
[421510810,1777788639000,-800.0,0.00016975,2]
[421510809,1777788639000,-800.0,0.0001697,2]
[421510812,1777788639000,-956.06,0.00016988,2]
[421510813,1777788639000,-800.0,0.00016998,2]
[421510802,1777788639000,-500.0,0.00016969,2]
[421510840,1777788640000,-7403.22981831,0.00017222,10]
[421510861,1777788643000,-500.0,0.00017299,2]
[421510855,1777788643000,-247.0,0.00017238,2]
[421510857,1777788643000,-2777.03391632,0.00017298,2]
[421510856,1777788643000,-1559.0,0.0001726,2]
[421510853,1777788643000,-1010.7015932,0.00016857,2]
[421510858,1777788643000,-956.06,0.00017299,2]
[421510859,1777788643000,-500.0,0.00017299,2]
[421510852,1777788643000,-442.0,0.0001475,2]
[421510860,1777788643000,-333.93315533,0.00017299,2]
[421510854,1777788643000,-21090.3339181,0.00017222,10]
[421510863,1777788643000,-294.503053,0.00017299,2]
[421510870,1777788643000,-500.0,0.00017299,2]
[421510865,1777788643000,-500.0,0.00017299,2]
[421510868,1777788643000,-500.0,0.00017299,2]
[421510874,1777788643000,-500.0,0.00017299,2]
[421510872,1777788643000,-500.0,0.00017299,2]
[421510873,1777788643000,-500.0,0.00017299,2]
[421510875,1777788643000,-224.80490417,0.00017299,2]
[421510862,1777788643000,-500.0,0.00017299,2]
[421510869,1777788643000,-500.0,0.00017299,2]
[421510867,1777788643000,-500.0,0.00017299,2]
[421510866,1777788643000,-500.0,0.00017299,2]
[421510864,1777788643000,-445.11778182,0.00017299,2]
[421510871,1777788643000,-500.0,0.00017299,2]
[421510889,1777788646000,-1076.76582498,0.00017358,2]
[421510885,1777788646000,-6000.0,0.000173,2]
[421510882,1777788646000,-673.80106214,0.00016857,2]
[421510888,1777788646000,-1700.26809134,0.00017358,2]
[421510884,1777788646000,-1246.61,0.000173,5]
[421510887,1777788646000,-604.36031352,0.00017349,2]
[421510886,1777788646000,-2777.03391632,0.00017328,2]
[421510890,1777788646000,-1688.33060653,0.00017374,14]
[421510893,1777788646000,-956.06,0.00017402,2]
[421510892,1777788646000,-2777.03391632,0.00017387,2]
[421510895,1777788646000,-2777.03391632,0.00017417,2]
[421510883,1777788646000,-275.19509583,0.00017299,2]
[421510894,1777788646000,-1688.33060653,0.00017403,14]
[421510897,1777788646000,-2219.93484016,0.00017432,14]
[421510891,1777788646000,-500.0,0.00017386,2]
[421510896,1777788646000,-1688.33060653,0.00017432,14]
[421510899,1777789320000,6875.28,8.01e-05,2]
[421510900,1777789586000,166.25324458,0.00018813,120]
[421510952,1777789832000,-160.0,0.00014681,2]
[421510947,1777789832000,-1000.0,0.00013699,2]
[421510950,1777789832000,-1000.0,0.00014617,2]
[421510945,1777789832000,-300.0,0.00012568,2]
[421510946,1777789832000,-300.0,0.00012568,2]
[421510943,1777789832000,-300.0,0.00012568,2]
[421510944,1777789832000,-300.0,0.00012568,2]
[421510941,1777789832000,-300.0,0.00012568,2]
[421510942,1777789832000,-300.0,0.00012568,2]
[421510940,1777789832000,-300.0,0.00012568,2]
[421510937,1777789832000,-300.0,0.00012568,2]
[421510936,1777789832000,-300.0,0.00012568,2]
[421510939,1777789832000,-300.0,0.00012568,2]
[421510934,1777789832000,-300.0,0.00012568,2]
[421510935,1777789832000,-300.0,0.00012568,2]
[421510933,1777789832000,-300.0,0.00012568,2]
[421510932,1777789832000,-300.0,0.00012568,2]
[421510931,1777789832000,-151.0,0.00012447,2]
[421510929,1777789832000,-561.0,0.00011775,2]
[421510930,1777789832000,-294.16557634,0.00011894,2]
[421510927,1777789832000,-797.0,0.00011774,2]
[421510928,1777789832000,-5000.0,0.00011775,2]
[421510926,1777789832000,-300.0,0.00011774,2]
[421510938,1777789832000,-300.0,0.00012568,2]
[421510951,1777789832000,-160.0,0.00014681,2]
[421510958,1777789832000,-225.30548169,0.00015683,21]
[421510949,1777789832000,-637.37,0.00014152,2]
[421510974,1777789832000,-500.0,0.00017023,2]
[421510976,1777789832000,-336.96857171,0.00017023,2]
[421510972,1777789832000,-233.75320874,0.00017023,2]
[421510975,1777789832000,-500.0,0.00017023,2]
[421510948,1777789832000,-347.11538008,0.00013894,2]
[421510971,1777789832000,-5000.0,0.00017023,2]
[421510970,1777789832000,-637.37,0.00016969,2]
[421510967,1777789832000,-437.828,0.00016953,2]
[421510968,1777789832000,-500.0,0.00016953,2]
[421510969,1777789832000,-2399.99738322,0.00016954,2]
[421510965,1777789832000,-637.37,0.00016798,2]
[421510966,1777789832000,-506.90512186,0.00016953,2]